[Event "January 9 Early 2024"]
[Site "https://www.chess.com"]
[Date "2024.01.11"]
[Round "4"]
[White "Vestby-Ellingsen, Mads"]
[Black "Mikhailovsky, Vladimir"]
[Result "1-0"]
[Board "74"]
[TimeControl "180+1"]
[WhiteFideId "1520857"]
[BlackFideId "34105414"]
[WhiteElo "2623"]
[BlackElo "2834"]
[WhiteTeam "NOR"]
[BlackTeam "RUS"]
[WhiteClock "0:00:51"]
[BlackClock "0:00:37"]

1. e4 {[%clk 0:03:00]}  c5 {[%clk 0:03:00]} 2. Nf3 {[%clk 0:03:01]}  e6 {[%clk 0:03:01]} 3. d4 {[%clk 0:03:01]}  cxd4 {[%clk 0:03:01]} 4. Bg5 {[%clk 0:03:01]}  f6 {[%clk 0:02:55]} 5. Bc1 {[%clk 0:03:01]}  Nc6 {[%clk 0:02:40]} 6. Nxd4 {[%clk 0:02:59]}  Bc5 {[%clk 0:02:41]} 7. Qh5+ {[%clk 0:02:55]}  g6 {[%clk 0:02:19]} 8. Qxc5 {[%clk 0:02:54]}  b6 {[%clk 0:01:59]} 9. Nxc6 {[%clk 0:02:53]}  Qc7 {[%clk 0:02:00]} 10. Qa3 {[%clk 0:02:42]}  dxc6 {[%clk 0:01:52]} 11. Nc3 {[%clk 0:02:34]}  Ne7 {[%clk 0:01:46]} 12. Be3 {[%clk 0:02:27]}  e5 {[%clk 0:01:36]} 13. O-O-O {[%clk 0:02:25]}  Be6 {[%clk 0:01:36]} 14. Qd6 {[%clk 0:02:21]}  Qc8 {[%clk 0:01:35]} 15. Ba6 {[%clk 0:02:21]}  Qd7 {[%clk 0:01:21]} 16. Qxd7+ {[%clk 0:02:10]}  Bxd7 {[%clk 0:01:22]} 17. Bc4 {[%clk 0:02:10]}  O-O-O {[%clk 0:01:18]} 18. Bh6 {[%clk 0:01:58]}  b5 {[%clk 0:01:04]} 19. Bb3 {[%clk 0:01:58]}  c5 {[%clk 0:00:58]} 20. Nd5 {[%clk 0:01:29]}  Nc6 {[%clk 0:00:58]} 21. c3 {[%clk 0:01:28]}  c4 {[%clk 0:00:55]} 22. Bc2 {[%clk 0:01:27]}  f5 {[%clk 0:00:55]} 23. exf5 {[%clk 0:01:20]}  gxf5 {[%clk 0:00:55]} 24. f4 {[%clk 0:01:15]}  e4 {[%clk 0:00:54]} 25. Ne3 {[%clk 0:01:14]}  Rhg8 {[%clk 0:00:51]} 26. Bg5 {[%clk 0:01:12]}  Rdf8 {[%clk 0:00:49]} 27. g3 {[%clk 0:01:12]}  Rg6 {[%clk 0:00:47]} 28. Rd5 {[%clk 0:01:10]}  h6 {[%clk 0:00:45]} 29. Bh4 {[%clk 0:01:09]}  a6 {[%clk 0:00:44]} 30. Rhd1 {[%clk 0:01:09]}  Be6 {[%clk 0:00:43]} 31. Rd6 {[%clk 0:01:09]}  Kc7 {[%clk 0:00:44]} 32. a3 {[%clk 0:00:57]}  Rf7 {[%clk 0:00:43]} 33. R6d2 {[%clk 0:00:53]}  Na5 {[%clk 0:00:37]} 34. Bd8+ {[%clk 0:00:51]} 1-0

[Event "January 9 Early 2024"]
[Site "https://www.chess.com"]
[Date "2024.01.11"]
[Round "4"]
[White "Mortazavi, Ali"]
[Black "Kohler, Aran"]
[Result "1-0"]
[Board "75"]
[TimeControl "180+1"]
[WhiteFideId "401323"]
[BlackFideId "1002856"]
[WhiteElo "2555"]
[BlackElo "2252"]
[WhiteTeam "ENG"]
[BlackTeam "NED"]
[WhiteClock "0:01:09"]
[BlackClock "0:00:13"]

1. e4 {[%clk 0:03:00]}  c6 {[%clk 0:03:00]} 2. Nc3 {[%clk 0:03:00]}  d5 {[%clk 0:03:00]} 3. Qf3 {[%clk 0:03:01]}  d4 {[%clk 0:02:58]} 4. Bc4 {[%clk 0:03:00]}  e6 {[%clk 0:02:57]} 5. Nce2 {[%clk 0:03:01]}  c5 {[%clk 0:02:53]} 6. Qg3 {[%clk 0:03:01]}  Nc6 {[%clk 0:02:53]} 7. d3 {[%clk 0:03:01]}  a6 {[%clk 0:02:52]} 8. a4 {[%clk 0:03:00]}  Rb8 {[%clk 0:02:45]} 9. f4 {[%clk 0:02:59]}  Nf6 {[%clk 0:02:43]} 10. Nf3 {[%clk 0:02:58]}  b5 {[%clk 0:02:40]} 11. axb5 {[%clk 0:02:57]}  axb5 {[%clk 0:02:41]} 12. Bb3 {[%clk 0:02:46]}  Be7 {[%clk 0:02:41]} 13. e5 {[%clk 0:02:39]}  Nh5 {[%clk 0:02:34]} 14. Qh3 {[%clk 0:02:40]}  g6 {[%clk 0:02:33]} 15. Ng3 {[%clk 0:02:40]}  Nxg3 {[%clk 0:02:13]} 16. hxg3 {[%clk 0:02:40]}  h5 {[%clk 0:02:02]} 17. g4 {[%clk 0:02:26]}  h4 {[%clk 0:02:01]} 18. g5 {[%clk 0:02:25]}  c4 {[%clk 0:01:51]} 19. dxc4 {[%clk 0:02:24]}  d3 {[%clk 0:01:52]} 20. O-O {[%clk 0:02:15]}  bxc4 {[%clk 0:01:43]} 21. Ba4 {[%clk 0:02:09]}  Bd7 {[%clk 0:01:38]} 22. Be3 {[%clk 0:02:06]}  Rxb2 {[%clk 0:01:33]} 23. cxd3 {[%clk 0:02:06]}  cxd3 {[%clk 0:01:30]} 24. Rfd1 {[%clk 0:02:01]}  O-O {[%clk 0:01:10]} 25. Rxd3 {[%clk 0:02:00]}  Qc7 {[%clk 0:01:04]} 26. Rc1 {[%clk 0:01:59]}  Rc8 {[%clk 0:00:56]} 27. Qxh4 {[%clk 0:01:42]}  Qb7 {[%clk 0:00:45]} 28. Bf2 {[%clk 0:01:15]}  Nxe5 {[%clk 0:00:40]} 29. Rxc8+ {[%clk 0:01:13]}  Qxc8 {[%clk 0:00:35]} 30. Nxe5 {[%clk 0:01:13]}  Bxa4 {[%clk 0:00:32]} 31. Rh3 {[%clk 0:01:12]}  Qc1+ {[%clk 0:00:15]} 32. Kh2 {[%clk 0:01:10]}  Qxf4+ {[%clk 0:00:13]} 33. Qxf4 {[%clk 0:01:09]} 1-0

[Event "January 9 Early 2024"]
[Site "https://www.chess.com"]
[Date "2024.01.11"]
[Round "4"]
[White "Poddubnyi, Viktor"]
[Black "Aradhya, Garg"]
[Result "0-1"]
[Board "76"]
[TimeControl "180+1"]
[WhiteFideId "4141989"]
[BlackFideId "25006746"]
[WhiteElo "2425"]
[BlackElo "2714"]
[WhiteTeam "RUS"]
[BlackTeam "IND"]
[WhiteClock "0:00:02"]
[BlackClock "0:01:03"]

1. e4 {[%clk 0:03:00]}  e5 {[%clk 0:02:58]} 2. f4 {[%clk 0:03:00]}  d5 {[%clk 0:02:57]} 3. exd5 {[%clk 0:03:00]}  exf4 {[%clk 0:02:57]} 4. Nf3 {[%clk 0:03:00]}  Nf6 {[%clk 0:02:55]} 5. c4 {[%clk 0:03:00]}  c6 {[%clk 0:02:54]} 6. d4 {[%clk 0:03:01]}  cxd5 {[%clk 0:02:53]} 7. Bxf4 {[%clk 0:03:01]}  Nc6 {[%clk 0:02:53]} 8. Nc3 {[%clk 0:02:59]}  Bb4 {[%clk 0:02:52]} 9. Be2 {[%clk 0:02:59]}  dxc4 {[%clk 0:02:27]} 10. O-O {[%clk 0:02:53]}  Be6 {[%clk 0:02:27]} 11. Bg5 {[%clk 0:02:02]}  O-O {[%clk 0:02:24]} 12. d5 {[%clk 0:01:28]}  Bxc3 {[%clk 0:02:16]} 13. dxe6 {[%clk 0:01:19]}  Bxb2 {[%clk 0:02:04]} 14. exf7+ {[%clk 0:01:18]}  Kh8 {[%clk 0:01:50]} 15. Bxc4 {[%clk 0:01:18]}  Bxa1 {[%clk 0:01:50]} 16. Qxa1 {[%clk 0:01:18]}  Qd6 {[%clk 0:01:49]} 17. Kh1 {[%clk 0:00:38]}  Na5 {[%clk 0:01:46]} 18. Rd1 {[%clk 0:00:36]}  Qc6 {[%clk 0:01:40]} 19. Ne5 {[%clk 0:00:34]}  Qb6 {[%clk 0:01:19]} 20. Bf1 {[%clk 0:00:20]}  Ne4 {[%clk 0:01:04]} 21. Qd4 {[%clk 0:00:02]}  Nf2+ {[%clk 0:01:03]} 0-1

[Event "January 9 Early 2024"]
[Site "https://www.chess.com"]
[Date "2024.01.11"]
[Round "4"]
[White "Elissalt Cardenas, Hector"]
[Black "Skurikhin, Dmitrij"]
[Result "0-1"]
[Board "77"]
[TimeControl "180+1"]
[WhiteFideId "3500632"]
[BlackFideId "4161297"]
[WhiteElo "2338"]
[BlackElo "2189"]
[WhiteTeam "ESP"]
[BlackTeam "RUS"]
[WhiteClock "0:00:30"]
[BlackClock "0:00:56"]

1. d4 {[%clk 0:03:00]}  d5 {[%clk 0:02:59]} 2. c4 {[%clk 0:03:00]}  c6 {[%clk 0:02:58]} 3. cxd5 {[%clk 0:02:59]}  cxd5 {[%clk 0:02:59]} 4. Bf4 {[%clk 0:02:59]}  Nf6 {[%clk 0:02:59]} 5. e3 {[%clk 0:03:00]}  Nc6 {[%clk 0:02:59]} 6. Bd3 {[%clk 0:02:57]}  a6 {[%clk 0:02:59]} 7. h3 {[%clk 0:02:52]}  g6 {[%clk 0:02:56]} 8. Nd2 {[%clk 0:02:45]}  Bf5 {[%clk 0:02:47]} 9. Bxf5 {[%clk 0:02:43]}  gxf5 {[%clk 0:02:43]} 10. Ngf3 {[%clk 0:02:43]}  e6 {[%clk 0:02:41]} 11. Ne5 {[%clk 0:02:41]}  Bd6 {[%clk 0:02:36]} 12. O-O {[%clk 0:02:31]}  Bxe5 {[%clk 0:02:30]} 13. Bxe5 {[%clk 0:02:31]}  Nxe5 {[%clk 0:02:30]} 14. dxe5 {[%clk 0:02:30]}  Nd7 {[%clk 0:02:30]} 15. f4 {[%clk 0:02:30]}  Qb6 {[%clk 0:02:28]} 16. Qb3 {[%clk 0:02:26]}  Rc8 {[%clk 0:02:09]} 17. Rac1 {[%clk 0:02:23]}  Rxc1 {[%clk 0:02:05]} 18. Rxc1 {[%clk 0:02:22]}  Qxb3 {[%clk 0:02:03]} 19. Nxb3 {[%clk 0:02:22]}  Kd8 {[%clk 0:02:02]} 20. Na5 {[%clk 0:02:20]}  b5 {[%clk 0:01:55]} 21. Nb7+ {[%clk 0:02:20]}  Ke7 {[%clk 0:01:51]} 22. Rc7 {[%clk 0:02:20]}  Ra8 {[%clk 0:01:46]} 23. Nc5 {[%clk 0:02:13]}  Rd8 {[%clk 0:01:42]} 24. Nxa6 {[%clk 0:02:04]}  Ke8 {[%clk 0:01:39]} 25. Rb7 {[%clk 0:01:26]}  Rc8 {[%clk 0:01:26]} 26. Rxb5 {[%clk 0:01:23]}  Rc1+ {[%clk 0:01:23]} 27. Kf2 {[%clk 0:01:22]}  Rc2+ {[%clk 0:01:23]} 28. Kf3 {[%clk 0:01:21]}  f6 {[%clk 0:01:19]} 29. exf6 {[%clk 0:01:04]}  Nxf6 {[%clk 0:01:17]} 30. Nc5 {[%clk 0:00:46]}  h5 {[%clk 0:01:09]} 31. g3 {[%clk 0:00:42]}  Ne4 {[%clk 0:01:07]} 32. Nd3 {[%clk 0:00:38]}  Rd2 {[%clk 0:01:04]} 33. Rb3 {[%clk 0:00:32]}  Rc2 {[%clk 0:00:57]} 34. Rc3 {[%clk 0:00:30]}  Nxc3 {[%clk 0:00:56]} 0-1

[Event "January 9 Early 2024"]
[Site "https://www.chess.com"]
[Date "2024.01.11"]
[Round "4"]
[White "Paikens, Reinis"]
[Black "Tiarks, Jann-Christian"]
[Result "1-0"]
[Board "80"]
[TimeControl "180+1"]
[WhiteFideId "11624078"]
[BlackFideId "12951595"]
[WhiteElo "2266"]
[BlackElo "2457"]
[WhiteTeam "LAT"]
[BlackTeam "GER"]
[WhiteClock "0:00:55"]
[BlackClock "0:00:32"]

1. c4 {[%clk 0:03:00]}  c5 {[%clk 0:02:56]} 2. Nc3 {[%clk 0:03:00]}  Nc6 {[%clk 0:02:56]} 3. g3 {[%clk 0:03:01]}  g6 {[%clk 0:02:56]} 4. Bg2 {[%clk 0:03:01]}  Bg7 {[%clk 0:02:57]} 5. e4 {[%clk 0:03:02]}  e5 {[%clk 0:02:58]} 6. Nge2 {[%clk 0:03:02]}  Nge7 {[%clk 0:02:58]} 7. O-O {[%clk 0:03:02]}  O-O {[%clk 0:02:59]} 8. d3 {[%clk 0:03:02]}  d6 {[%clk 0:02:58]} 9. Rb1 {[%clk 0:03:01]}  a5 {[%clk 0:02:58]} 10. h3 {[%clk 0:02:59]}  f5 {[%clk 0:02:57]} 11. f4 {[%clk 0:02:59]}  Nd4 {[%clk 0:02:55]} 12. Nxd4 {[%clk 0:02:58]}  cxd4 {[%clk 0:02:55]} 13. Nd5 {[%clk 0:02:58]}  Nxd5 {[%clk 0:02:55]} 14. cxd5 {[%clk 0:02:52]}  fxe4 {[%clk 0:02:55]} 15. dxe4 {[%clk 0:02:51]}  Bd7 {[%clk 0:02:48]} 16. fxe5 {[%clk 0:02:48]}  Bxe5 {[%clk 0:02:48]} 17. Bf4 {[%clk 0:02:48]}  Bb5 {[%clk 0:02:41]} 18. Rf2 {[%clk 0:02:35]}  Rc8 {[%clk 0:02:39]} 19. Qd2 {[%clk 0:02:33]}  Qb6 {[%clk 0:02:22]} 20. Bf1 {[%clk 0:02:28]}  Bxf1 {[%clk 0:02:18]} 21. Rbxf1 {[%clk 0:02:27]}  Qc5 {[%clk 0:01:52]} 22. Kg2 {[%clk 0:02:12]}  Qc4 {[%clk 0:01:45]} 23. Bxe5 {[%clk 0:02:01]}  dxe5 {[%clk 0:01:45]} 24. Qg5 {[%clk 0:02:00]}  Rfe8 {[%clk 0:01:24]} 25. d6 {[%clk 0:01:40]}  Qe6 {[%clk 0:01:17]} 26. Rf6 {[%clk 0:01:39]}  Rc2+ {[%clk 0:01:14]} 27. R1f2 {[%clk 0:01:26]}  Rxf2+ {[%clk 0:01:14]} 28. Kxf2 {[%clk 0:01:25]}  Qxa2 {[%clk 0:01:09]} 29. d7 {[%clk 0:01:10]}  Qxb2+ {[%clk 0:01:08]} 30. Kf3 {[%clk 0:01:09]}  Qb3+ {[%clk 0:00:36]} 31. Kg4 {[%clk 0:01:05]}  Qd1+ {[%clk 0:00:36]} 32. Kh4 {[%clk 0:01:03]}  Rd8 {[%clk 0:00:31]} 33. Rxg6+ {[%clk 0:00:54]}  hxg6 {[%clk 0:00:31]} 34. Qxd8+ {[%clk 0:00:54]}  Kg7 {[%clk 0:00:32]} 35. Qe7+ {[%clk 0:00:54]}  Kh6 {[%clk 0:00:32]} 36. Qg5+ {[%clk 0:00:54]}  Kg7 {[%clk 0:00:32]} 37. d8=Q {[%clk 0:00:55]} 1-0

[Event "January 9 Early 2024"]
[Site "https://www.chess.com"]
[Date "2024.01.11"]
[Round "4"]
[White "Kislinsky, Alexey"]
[Black "Rose, Felix"]
[Result "1-0"]
[Board "81"]
[TimeControl "180+1"]
[WhiteFideId "14108801"]
[BlackFideId "5105722"]
[WhiteElo "2737"]
[BlackElo "2248"]
[WhiteTeam "CZE"]
[BlackTeam "MEX"]
[WhiteClock "0:01:28"]
[BlackClock "0:00:04"]

1. e4 {[%clk 0:03:00]}  e5 {[%clk 0:02:59]} 2. Nf3 {[%clk 0:03:00]}  Nc6 {[%clk 0:02:58]} 3. Bb5 {[%clk 0:03:01]}  a6 {[%clk 0:02:58]} 4. Ba4 {[%clk 0:03:01]}  Nf6 {[%clk 0:02:59]} 5. d3 {[%clk 0:03:00]}  b5 {[%clk 0:02:58]} 6. Bb3 {[%clk 0:02:59]}  Bc5 {[%clk 0:02:59]} 7. c3 {[%clk 0:02:59]}  d6 {[%clk 0:02:59]} 8. O-O {[%clk 0:02:59]}  Bb6 {[%clk 0:02:59]} 9. Nbd2 {[%clk 0:03:00]}  O-O {[%clk 0:02:58]} 10. Re1 {[%clk 0:03:00]}  Ne7 {[%clk 0:02:54]} 11. Nf1 {[%clk 0:02:59]}  Ng6 {[%clk 0:02:54]} 12. h3 {[%clk 0:02:59]}  h6 {[%clk 0:02:51]} 13. Ng3 {[%clk 0:02:59]}  Re8 {[%clk 0:02:32]} 14. Bc2 {[%clk 0:02:48]}  c5 {[%clk 0:02:25]} 15. d4 {[%clk 0:02:27]}  cxd4 {[%clk 0:02:18]} 16. cxd4 {[%clk 0:02:26]}  exd4 {[%clk 0:02:06]} 17. Nxd4 {[%clk 0:02:24]}  d5 {[%clk 0:02:00]} 18. Ndf5 {[%clk 0:02:05]}  dxe4 {[%clk 0:01:44]} 19. Nd6 {[%clk 0:02:05]}  Re6 {[%clk 0:01:10]} 20. Ndxe4 {[%clk 0:02:03]}  Qxd1 {[%clk 0:01:03]} 21. Rxd1 {[%clk 0:02:04]}  Bb7 {[%clk 0:00:52]} 22. Nxf6+ {[%clk 0:02:04]}  Rxf6 {[%clk 0:00:52]} 23. Be3 {[%clk 0:01:48]}  Bxe3 {[%clk 0:00:36]} 24. fxe3 {[%clk 0:01:49]}  Rc8 {[%clk 0:00:33]} 25. Bb3 {[%clk 0:01:49]}  Nh4 {[%clk 0:00:28]} 26. e4 {[%clk 0:01:38]}  Rg6 {[%clk 0:00:21]} 27. Kh2 {[%clk 0:01:34]}  Re8 {[%clk 0:00:18]} 28. Rd7 {[%clk 0:01:33]}  Bxe4 {[%clk 0:00:08]} 29. Bxf7+ {[%clk 0:01:30]}  Kh7 {[%clk 0:00:08]} 30. Bxg6+ {[%clk 0:01:30]}  Bxg6 {[%clk 0:00:07]} 31. Rc1 {[%clk 0:01:29]}  Re3 {[%clk 0:00:06]} 32. Rcc7 {[%clk 0:01:29]}  Nf5 {[%clk 0:00:05]} 33. Nxf5 {[%clk 0:01:27]}  Bxf5 {[%clk 0:00:06]} 34. Rxg7+ {[%clk 0:01:28]}  Kh8 {[%clk 0:00:07]} 35. Rgf7 {[%clk 0:01:28]}  Bh7 {[%clk 0:00:04]} 36. Rf8+ {[%clk 0:01:28]} 1-0

[Event "January 9 Early 2024"]
[Site "https://www.chess.com"]
[Date "2024.01.11"]
[Round "4"]
[White "Crocker, Philip J"]
[Black "Zgadzaj, Rafal"]
[Result "0-1"]
[Board "82"]
[TimeControl "180+1"]
[WhiteFideId "403180"]
[BlackFideId "1113712"]
[WhiteElo "2114"]
[BlackElo "2333"]
[WhiteTeam "ENG"]
[BlackTeam "POL"]
[WhiteClock "0:00:01"]
[BlackClock "0:01:32"]

1. d4 {[%clk 0:03:00]}  d5 {[%clk 0:02:58]} 2. Bf4 {[%clk 0:03:00]}  Nd7 {[%clk 0:02:57]} 3. e3 {[%clk 0:02:59]}  f6 {[%clk 0:02:56]} 4. c4 {[%clk 0:02:52]}  e5 {[%clk 0:02:51]} 5. Bg3 {[%clk 0:02:47]}  Bb4+ {[%clk 0:02:44]} 6. Nc3 {[%clk 0:02:45]}  dxc4 {[%clk 0:02:42]} 7. Bxc4 {[%clk 0:02:44]}  Nb6 {[%clk 0:02:39]} 8. Ne2 {[%clk 0:02:25]}  exd4 {[%clk 0:02:35]} 9. exd4 {[%clk 0:02:19]}  Bxc3+ {[%clk 0:02:33]} 10. bxc3 {[%clk 0:02:11]}  Nxc4 {[%clk 0:02:33]} 11. Qa4+ {[%clk 0:02:11]}  c6 {[%clk 0:02:19]} 12. Qxc4 {[%clk 0:02:10]}  Qd5 {[%clk 0:02:11]} 13. Qxd5 {[%clk 0:01:52]}  cxd5 {[%clk 0:02:12]} 14. Rb1 {[%clk 0:01:44]}  Ne7 {[%clk 0:02:09]} 15. Nf4 {[%clk 0:01:39]}  g5 {[%clk 0:02:08]} 16. Nd3 {[%clk 0:01:34]}  Kf7 {[%clk 0:02:06]} 17. Kd2 {[%clk 0:01:30]}  b6 {[%clk 0:02:04]} 18. Rhe1 {[%clk 0:01:13]}  Bf5 {[%clk 0:02:04]} 19. Bd6 {[%clk 0:01:08]}  Nc6 {[%clk 0:02:03]} 20. Re3 {[%clk 0:00:57]}  Rad8 {[%clk 0:02:00]} 21. Ba3 {[%clk 0:00:55]}  Rhe8 {[%clk 0:01:59]} 22. Rbe1 {[%clk 0:00:54]}  Na5 {[%clk 0:01:55]} 23. Rxe8 {[%clk 0:00:47]}  Rxe8 {[%clk 0:01:56]} 24. Rxe8 {[%clk 0:00:45]}  Kxe8 {[%clk 0:01:55]} 25. Bc1 {[%clk 0:00:34]}  Nc4+ {[%clk 0:01:52]} 26. Ke2 {[%clk 0:00:32]}  a5 {[%clk 0:01:48]} 27. Nb2 {[%clk 0:00:25]}  Nd6 {[%clk 0:01:37]} 28. Na4 {[%clk 0:00:20]}  Nc4 {[%clk 0:01:37]} 29. Nb2 {[%clk 0:00:20]}  Nd6 {[%clk 0:01:37]} 30. Na4 {[%clk 0:00:20]}  Nc8 {[%clk 0:01:38]} 31. Ba3 {[%clk 0:00:19]}  Kd7 {[%clk 0:01:38]} 32. Kd2 {[%clk 0:00:18]}  Bb1 {[%clk 0:01:37]} 33. h4 {[%clk 0:00:10]}  gxh4 {[%clk 0:01:34]} 34. Bc1 {[%clk 0:00:08]}  Bxa2 {[%clk 0:01:33]} 35. Ke3 {[%clk 0:00:08]}  Bb3 {[%clk 0:01:32]} 36. Nb2 {[%clk 0:00:07]}  Nd6 {[%clk 0:01:33]} 37. Kf4 {[%clk 0:00:06]}  a4 {[%clk 0:01:33]} 38. Nd3 {[%clk 0:00:05]}  Nc4 {[%clk 0:01:32]} 39. Kf5 {[%clk 0:00:01]}  a3 {[%clk 0:01:32]} 0-1

[Event "January 9 Early 2024"]
[Site "https://www.chess.com"]
[Date "2024.01.11"]
[Round "4"]
[White "Wendt, Jan-Dietrich"]
[Black "Horak, Martin"]
[Result "0-1"]
[Board "86"]
[TimeControl "180+1"]
[WhiteFideId "4623797"]
[BlackFideId "367095"]
[WhiteElo "2351"]
[BlackElo "2526"]
[WhiteTeam "GER"]
[BlackTeam "CZE"]
[WhiteClock "0:00:03"]
[BlackClock "0:01:06"]

1. Nf3 {[%clk 0:00:32]}  d5 {[%clk 0:02:57]} 2. c4 {[%clk 0:00:31]}  e6 {[%clk 0:02:54]} 3. g3 {[%clk 0:00:31]}  Nf6 {[%clk 0:02:54]} 4. Bg2 {[%clk 0:00:31]}  Be7 {[%clk 0:02:54]} 5. O-O {[%clk 0:00:32]}  O-O {[%clk 0:02:55]} 6. b3 {[%clk 0:00:32]}  d4 {[%clk 0:02:54]} 7. Bb2 {[%clk 0:00:32]}  c5 {[%clk 0:02:53]} 8. e3 {[%clk 0:00:33]}  Nc6 {[%clk 0:02:53]} 9. exd4 {[%clk 0:00:33]}  cxd4 {[%clk 0:02:54]} 10. Na3 {[%clk 0:00:32]}  e5 {[%clk 0:02:51]} 11. d3 {[%clk 0:00:32]}  Nd7 {[%clk 0:02:51]} 12. Nc2 {[%clk 0:00:32]}  a5 {[%clk 0:02:48]} 13. Ba3 {[%clk 0:00:32]}  Nb4 {[%clk 0:02:40]} 14. Qd2 {[%clk 0:00:27]}  Qb6 {[%clk 0:02:30]} 15. Bxb4 {[%clk 0:00:18]}  axb4 {[%clk 0:02:29]} 16. Rfe1 {[%clk 0:00:18]}  Bd6 {[%clk 0:02:23]} 17. Ng5 {[%clk 0:00:16]}  h6 {[%clk 0:02:15]} 18. Ne4 {[%clk 0:00:15]}  Be7 {[%clk 0:02:16]} 19. f4 {[%clk 0:00:13]}  f5 {[%clk 0:01:59]} 20. Nf2 {[%clk 0:00:13]}  Bf6 {[%clk 0:01:53]} 21. fxe5 {[%clk 0:00:12]}  Nxe5 {[%clk 0:01:52]} 22. Kh1 {[%clk 0:00:10]}  Bd7 {[%clk 0:01:50]} 23. Nh3 {[%clk 0:00:09]}  Bc6 {[%clk 0:01:49]} 24. Nf4 {[%clk 0:00:10]}  Bg5 {[%clk 0:01:48]} 25. Nd5 {[%clk 0:00:09]}  Bxd2 {[%clk 0:01:18]} 26. Nxb6 {[%clk 0:00:08]}  Bxe1 {[%clk 0:01:18]} 27. Bxc6 {[%clk 0:00:06]}  Nxc6 {[%clk 0:01:15]} 28. Rxe1 {[%clk 0:00:05]}  Rxa2 {[%clk 0:01:14]} 29. Re2 {[%clk 0:00:03]}  Kf7 {[%clk 0:01:06]} 30. Kg2 {[%clk 0:00:03]}  Re8 {[%clk 0:01:06]} 0-1

[Event "January 9 Early 2024"]
[Site "https://www.chess.com"]
[Date "2024.01.11"]
[Round "4"]
[White "Mizzi, Jack"]
[Black "Sieciechowicz, Marcin"]
[Result "1-0"]
[Board "87"]
[TimeControl "180+1"]
[WhiteFideId "5602521"]
[BlackFideId "1130170"]
[WhiteElo "2501"]
[BlackElo "2682"]
[WhiteTeam "MLT"]
[BlackTeam "POL"]
[WhiteClock "0:00:16"]
[BlackClock "0:01:11"]

1. d4 {[%clk 0:03:00]}  Nf6 {[%clk 0:02:58]} 2. c4 {[%clk 0:03:00]}  g6 {[%clk 0:02:58]} 3. g3 {[%clk 0:03:01]}  Bg7 {[%clk 0:02:56]} 4. Bg2 {[%clk 0:03:01]}  O-O {[%clk 0:02:56]} 5. Nf3 {[%clk 0:03:01]}  d6 {[%clk 0:02:55]} 6. O-O {[%clk 0:03:01]}  Nc6 {[%clk 0:02:55]} 7. Nc3 {[%clk 0:03:01]}  a6 {[%clk 0:02:54]} 8. Qc2 {[%clk 0:03:00]}  Bd7 {[%clk 0:02:53]} 9. Rd1 {[%clk 0:02:57]}  Rb8 {[%clk 0:02:53]} 10. b3 {[%clk 0:02:53]}  b5 {[%clk 0:02:52]} 11. cxb5 {[%clk 0:02:51]}  axb5 {[%clk 0:02:51]} 12. Bb2 {[%clk 0:02:51]}  e6 {[%clk 0:02:50]} 13. e4 {[%clk 0:02:47]}  Qe7 {[%clk 0:02:46]} 14. Qe2 {[%clk 0:02:32]}  b4 {[%clk 0:02:41]} 15. Nb1 {[%clk 0:02:26]}  Rfc8 {[%clk 0:02:31]} 16. Nbd2 {[%clk 0:02:26]}  Na5 {[%clk 0:02:18]} 17. Nc4 {[%clk 0:02:22]}  Bb5 {[%clk 0:02:17]} 18. Rac1 {[%clk 0:02:13]}  Nxe4 {[%clk 0:02:01]} 19. Qxe4 {[%clk 0:01:55]}  d5 {[%clk 0:02:01]} 20. Qe2 {[%clk 0:01:38]}  dxc4 {[%clk 0:02:01]} 21. bxc4 {[%clk 0:01:38]}  Ba6 {[%clk 0:02:01]} 22. Ne5 {[%clk 0:01:28]}  c5 {[%clk 0:02:01]} 23. dxc5 {[%clk 0:01:24]}  Rxc5 {[%clk 0:01:56]} 24. Nd7 {[%clk 0:00:56]}  Rbc8 {[%clk 0:01:45]} 25. Bxg7 {[%clk 0:00:50]}  Kxg7 {[%clk 0:01:43]} 26. Qb2+ {[%clk 0:00:47]}  e5 {[%clk 0:01:40]} 27. Qxb4 {[%clk 0:00:32]}  Nxc4 {[%clk 0:01:40]} 28. Nxc5 {[%clk 0:00:27]}  Qxc5 {[%clk 0:01:41]} 29. Qxc5 {[%clk 0:00:23]}  Rxc5 {[%clk 0:01:42]} 30. Bf1 {[%clk 0:00:23]}  Rc6 {[%clk 0:01:38]} 31. Rc3 {[%clk 0:00:17]}  Bb5 {[%clk 0:01:25]} 32. Rdc1 {[%clk 0:00:17]}  Ra6 {[%clk 0:01:21]} 33. Bxc4 {[%clk 0:00:17]}  Bxc4 {[%clk 0:01:22]} 34. Rxc4 {[%clk 0:00:17]}  Rxa2 {[%clk 0:01:22]} 35. Kg2 {[%clk 0:00:18]}  h5 {[%clk 0:01:22]} 36. Rc7 {[%clk 0:00:18]}  e4 {[%clk 0:01:20]} 37. Re7 {[%clk 0:00:17]}  Ra6 {[%clk 0:01:13]} 38. Rcc7 {[%clk 0:00:16]}  Rf6 {[%clk 0:01:13]} 39. Rxe4 {[%clk 0:00:16]}  Rf5 {[%clk 0:01:11]} 40. Rf4 {[%clk 0:00:16]} 1-0